bitfinex-derivatives/quotes_BTCF0:USTF0_20250904
["timestamp","ask_amount","ask_price","bid_price","bid_amount"]
[1756946087457,0.50319855,112180.0,112170.0,1.22324604]
[1756946087655,0.42309333,112180.0,112170.0,1.22324604]
[1756946088170,0.42309333,112180.0,112170.0,0.8577666]
[1756946088467,0.42309333,112180.0,112170.0,1.22324604]
[1756946088667,0.42309333,112180.0,112170.0,0.40364604]
[1756946088867,0.42309333,112180.0,112170.0,1.22324604]
[1756946089268,0.42309333,112180.0,112170.0,2.31968436]
[1756946089869,0.06229333,112180.0,112170.0,2.31968436]
[1756946090168,0.06229333,112180.0,112170.0,2.58488436]
[1756946090764,0.42309333,112180.0,112170.0,2.58488436]
[1756946091168,0.42309333,112180.0,112170.0,2.58548436]
[1756946091472,0.42309333,112180.0,112170.0,1.48904604]
[1756946091965,0.07186364,112180.0,112170.0,3.29628436]
[1756946092765,0.07186364,112180.0,112170.0,3.54628436]
[1756946093565,0.07186364,112180.0,112170.0,5.42956436]
[1756946095274,0.02278333,112180.0,112170.0,5.42956436]
[1756946096369,0.07088477,112180.0,112170.0,5.42956436]
[1756946097274,0.07088477,112180.0,112170.0,5.17956436]
[1756946100273,0.08533477,112180.0,112170.0,2.8974466]
[1756946100476,0.08533477,112180.0,112170.0,5.17860436]
[1756946101072,0.07088477,112180.0,112170.0,5.17860436]
[1756946101778,0.06419988,112190.0,112170.0,5.51772366]
[1756946102077,0.06419988,112190.0,112180.0,0.73795944]
[1756946102078,0.0001,112190.0,112180.0,0.73795944]
[1756946102276,0.43882988,112200.0,112180.0,0.76795944]
[1756946102478,0.43882988,112200.0,112190.0,1.18595944]
[1756946102776,0.43872988,112200.0,112190.0,1.18595944]
[1756946103179,0.46278988,112200.0,112190.0,1.19314944]
[1756946103375,0.46278988,112200.0,112190.0,1.19306944]
[1756946103577,0.46278988,112200.0,112190.0,0.37266944]
[1756946103772,0.64869,112200.0,112190.0,0.37266944]
[1756946104081,0.64869,112200.0,112190.0,1.19314944]
[1756946105076,0.64869,112200.0,112190.0,0.82044]
[1756946105477,0.03851,112190.0,112180.0,0.63786944]
[1756946105678,0.39931,112190.0,112180.0,1.45850944]
[1756946105879,0.39931,112190.0,112180.0,0.63786944]
[1756946106180,0.39931,112190.0,112180.0,1.45866944]
[1756946106384,0.46340988,112190.0,112180.0,1.45866944]
[1756946107480,0.46340988,112190.0,112180.0,1.09319]
[1756946107782,0.46340988,112190.0,112180.0,1.45866944]
[1756946110587,0.46340988,112190.0,112180.0,0.63786944]
[1756946110778,0.46340988,112190.0,112180.0,1.46042944]
[1756946111284,0.39931,112190.0,112180.0,1.46042944]
[1756946111580,0.46340988,112190.0,112180.0,0.2652]
[1756946111884,0.39931,112190.0,112180.0,1.45315944]
[1756946112782,0.03851,112190.0,112180.0,1.45315944]
[1756946112984,0.03851,112190.0,112180.0,1.09599]
[1756946112985,0.39931,112190.0,112180.0,1.09599]
[1756946113281,0.39931,112190.0,112180.0,1.46146944]
[1756946113781,0.42183032,112190.0,112180.0,1.46146944]
[1756946118888,0.42183032,112190.0,112180.0,1.47146944]
[1756946121500,0.42183032,112190.0,112180.0,1.47129579]
[1756946122485,0.03697032,112190.0,112180.0,1.83209579]
[1756946122685,0.06256558,112190.0,112180.0,1.83209579]
[1756946122879,0.02252032,112190.0,112180.0,2.07209579]
[1756946123085,0.02252032,112190.0,112180.0,2.44209579]
[1756946124889,0.02252032,112190.0,112180.0,2.44309579]
[1756946125387,0.02252032,112190.0,112180.0,2.44209579]
[1756946125588,0.02252032,112190.0,112180.0,2.44509579]
[1756946127286,0.03752032,112190.0,112180.0,1.62149579]
[1756946127492,0.39832032,112190.0,112180.0,1.46309579]
[1756946127886,0.39832032,112190.0,112180.0,1.47309579]
[1756946128495,0.42125032,112190.0,112180.0,1.47305579]
[1756946128896,0.06045032,112190.0,112180.0,1.47305579]
[1756946129193,0.06045032,112190.0,112180.0,1.10775]
[1756946129397,0.06045032,112190.0,112180.0,1.47305579]
[1756946131395,0.06045032,112190.0,112180.0,1.10775]
[1756946131595,0.06045032,112190.0,112180.0,1.47305579]
[1756946131792,0.1085659,112190.0,112180.0,1.47305579]
[1756946132399,0.1085659,112190.0,112180.0,1.47749579]
[1756946133699,0.0706359,112190.0,112180.0,1.47749579]
[1756946134401,0.0856359,112190.0,112180.0,1.47749579]
[1756946135100,0.0856359,112190.0,112180.0,0.65513579]
[1756946135101,0.1085659,112190.0,112180.0,0.65513579]
[1756946135302,0.1085659,112190.0,112180.0,1.47885579]
[1756946136102,0.1085659,112190.0,112180.0,1.11355]
[1756946136303,0.1085659,112190.0,112180.0,1.47885579]
[1756946136512,0.1085659,112190.0,112180.0,0.65513579]
[1756946136908,0.7353502,112190.0,112180.0,1.11475]
[1756946137205,0.7353502,112190.0,112180.0,1.48005579]
[1756946141907,0.71935423,112190.0,112180.0,1.48005579]
[1756946143500,0.71935423,112190.0,112180.0,1.47969579]
[1756946144804,0.71935423,112190.0,112180.0,0.65513579]
[1756946145010,0.71935423,112190.0,112180.0,1.47965579]
[1756946145608,0.71935423,112190.0,112180.0,0.28983]
[1756946145807,0.71935423,112190.0,112180.0,0.27264]
[1756946145808,1.44065599,112190.0,112180.0,0.27264]
[1756946146109,1.44065599,112190.0,112180.0,1.09672]
[1756946146305,0.7353502,112190.0,112180.0,1.09672]
[1756946146511,1.47065599,112190.0,112180.0,1.09672]
[1756946146711,1.47065599,112190.0,112180.0,0.00744]
[1756946146914,1.47065599,112190.0,112180.0,0.83152]
[1756946148114,1.47065599,112190.0,112180.0,0.83168]
[1756946148518,1.47165599,112190.0,112180.0,0.82868]
[1756946149615,1.47165599,112190.0,112180.0,0.00444]
[1756946149915,1.47165599,112190.0,112180.0,0.82876]
[1756946150320,1.47165599,112190.0,112180.0,0.00444]
[1756946150516,1.47165599,112190.0,112180.0,0.82872]
[1756946151216,1.10165599,112190.0,112180.0,0.00444]
[1756946151524,1.41165599,112190.0,112180.0,0.8286]
[1756946151916,1.41165599,112190.0,112180.0,0.82852]
[1756946152106,1.41165599,112190.0,112180.0,0.00444]
[1756946152311,1.41165599,112190.0,112180.0,0.82848]
[1756946152818,1.41165599,112190.0,112180.0,0.82832]
[1756946153921,1.0463502,112190.0,112180.0,0.82832]
[1756946154222,1.41165599,112190.0,112180.0,0.82832]
[1756946154722,1.41165599,112190.0,112180.0,0.83551]
[1756946154921,0.8563502,112190.0,112180.0,1.20081579]
[1756946155718,0.79225032,112190.0,112180.0,1.20081579]
[1756946155913,0.79225032,112190.0,112180.0,0.83551]
[1756946158018,1.00225032,112190.0,112180.0,0.83551]
[1756946158616,0.80225032,112190.0,112180.0,0.83551]
[1756946158824,1.01225032,112190.0,112180.0,0.83551]
[1756946159029,1.01225032,112190.0,112180.0,0.01163]
[1756946159318,0.76225032,112190.0,112180.0,0.83651]
[1756946159726,0.91755611,112190.0,112180.0,0.82912]
[1756946159916,0.74225032,112190.0,112180.0,0.82912]
[1756946160116,1.10755611,112190.0,112180.0,0.82912]
[1756946160523,1.10755611,112190.0,112180.0,0.83631]
[1756946160720,1.10755611,112190.0,112180.0,1.20161579]
[1756946160721,0.74225032,112190.0,112180.0,1.20161579]
[1756946161018,0.74225032,112190.0,112180.0,1.45161579]
[1756946161019,0.4702614,112190.0,112180.0,1.45161579]
[1756946161222,0.38432032,112190.0,112180.0,1.45161579]
[1756946162610,0.38432032,112190.0,112180.0,1.45261579]
[1756946162810,0.02352032,112190.0,112180.0,1.45261579]
[1756946163326,0.02252032,112190.0,112180.0,1.45661579]
[1756946163823,0.02252032,112190.0,112180.0,1.81741579]
[1756946167233,0.02252032,112190.0,112180.0,2.08261579]
[1756946170725,0.02252032,112190.0,112180.0,3.26764446]
[1756946171830,0.02252032,112190.0,112180.0,4.13764446]
[1756946172219,0.0001,112200.0,112190.0,0.0962933]
[1756946172429,0.04801108,112210.0,112200.0,1.46825316]
[1756946172732,0.04801108,112210.0,112200.0,2.65269316]
[1756946173129,0.04824108,112210.0,112200.0,2.65269316]
[1756946173831,0.04824108,112210.0,112200.0,2.65713316]
[1756946174430,0.00023,112210.0,112200.0,2.65813316]
[1756946175422,0.00023,112210.0,112200.0,2.65765316]
[1756946177337,0.01468,112210.0,112200.0,2.65765316]
[1756946177531,0.01468,112210.0,112200.0,2.29685316]
[1756946178034,0.01468,112210.0,112200.0,2.65765316]
[1756946178529,0.01468,112210.0,112200.0,1.83449316]
[1756946178737,0.01468,112210.0,112200.0,2.29621316]
[1756946180934,0.01468,112210.0,112200.0,2.29601316]
[1756946181142,0.01468,112210.0,112200.0,2.29597316]
[1756946181434,0.01468,112210.0,112200.0,1.47369316]
[1756946181842,0.03892,112210.0,112200.0,0.83487]
[1756946182042,0.03892,112210.0,112200.0,2.56129316]
[1756946183051,0.01468,112210.0,112200.0,2.56129316]
[1756946183553,0.01468,112210.0,112200.0,2.56052504]
[1756946184247,0.037345,112210.0,112200.0,2.56052504]
[1756946185651,0.037345,112210.0,112200.0,2.92132504]
[1756946186950,0.037345,112210.0,112200.0,2.56052504]
[1756946187554,0.037345,112210.0,112200.0,1.73812504]
[1756946187853,0.037345,112210.0,112200.0,2.92168504]
[1756946188041,0.037345,112210.0,112200.0,2.09892504]
[1756946188354,0.037345,112210.0,112200.0,2.56088504]
[1756946188855,0.037345,112210.0,112200.0,1.73812504]
[1756946189047,0.061585,112210.0,112200.0,0.27767]
[1756946189355,0.311585,112210.0,112200.0,1.46546376]
[1756946189848,0.311585,112210.0,112200.0,1.83057752]
[1756946190053,0.311585,112210.0,112200.0,1.46546376]
[1756946193851,0.311585,112210.0,112200.0,1.83057752]
[1756946194049,0.311585,112210.0,112200.0,1.10035]
[1756946194249,0.311585,112210.0,112200.0,1.83057752]
[1756946197261,0.35959608,112210.0,112200.0,1.83057752]
[1756946200953,0.33535608,112210.0,112200.0,1.83057752]
[1756946201862,0.33535608,112210.0,112200.0,2.56080504]
[1756946203760,0.72012608,112210.0,112200.0,1.46430376]
[1756946204464,0.72012608,112210.0,112200.0,1.00789752]
[1756946204662,0.72012608,112210.0,112200.0,1.82941752]
[1756946204663,0.73621488,112210.0,112200.0,1.82941752]
[1756946204858,0.73621488,112210.0,112200.0,1.46430376]
[1756946205954,0.73621488,112210.0,112200.0,1.46418376]
[1756946206154,0.73621488,112210.0,112200.0,0.27767]
[1756946206364,1.03722876,112210.0,112200.0,0.8268]
[1756946206560,1.56150025,112210.0,112200.0,0.00544]
[1756946206757,1.41722876,112210.0,112200.0,0.82704]
[1756946206960,0.75222022,112210.0,112200.0,0.82704]
[1756946207265,1.45733398,112210.0,112200.0,0.82704]
[1756946207455,1.45733398,112210.0,112200.0,0.77888891]
[1756946207962,1.11733398,112210.0,112200.0,0.77888891]
[1756946208261,1.48733398,112210.0,112200.0,0.77888891]
[1756946208664,1.44733398,112210.0,112200.0,0.77888891]
[1756946208963,1.11733398,112210.0,112200.0,0.77888891]
[1756946209163,0.01354,112200.0,112190.0,1.88276]
[1756946209363,0.46109505,112200.0,112190.0,2.70612]
[1756946210665,0.46109505,112200.0,112190.0,1.88476]
[1756946210963,0.46109505,112200.0,112190.0,2.70788]
[1756946211962,0.397005,112200.0,112190.0,2.70788]
[1756946212461,0.397005,112200.0,112190.0,1.88476]
[1756946212658,0.44501669,112200.0,112190.0,3.07271376]
[1756946213365,0.44501669,112200.0,112190.0,2.24987376]
[1756946213562,0.44501669,112200.0,112190.0,3.07263376]
[1756946214766,0.44501669,112200.0,112190.0,2.24987376]
[1756946214968,0.44501669,112200.0,112190.0,3.07231376]
[1756946215563,0.44501669,112200.0,112190.0,2.7072]
[1756946215961,0.42235169,112200.0,112190.0,2.7072]
[1756946216160,0.44507931,112200.0,112190.0,2.7072]
[1756946220966,1.17019307,112200.0,112190.0,1.88476]
[1756946221160,1.16019307,112200.0,112190.0,2.70648]
[1756946221368,0.81019307,112200.0,112190.0,2.70648]
[1756946222072,0.82627143,112200.0,112190.0,2.70648]
[1756946222371,0.46115767,112200.0,112190.0,2.70648]
[1756946223072,0.48512767,112200.0,112190.0,0.83075]
[1756946226268,0.85024143,112200.0,112190.0,0.83075]
[1756946226670,0.48512767,112200.0,112190.0,0.83075]
[1756946228072,0.48512767,112200.0,112190.0,1.19586376]
[1756946231069,0.42103762,112200.0,112190.0,1.19586376]
[1756946231269,0.50114284,112200.0,112190.0,1.19586376]
[1756946231974,0.56517439,112200.0,112190.0,1.19586376]
[1756946232174,0.48506917,112200.0,112190.0,1.19586376]
[1756946232674,0.39706762,112200.0,112190.0,1.19586376]
[1756946233068,0.46109917,112200.0,112190.0,1.19586376]
[1756946235568,0.48537917,112200.0,112190.0,0.00903]
[1756946235773,0.48537917,112200.0,112190.0,1.19526376]
[1756946236477,0.42134762,112200.0,112190.0,1.19526376]
[1756946236868,0.42134762,112200.0,112190.0,1.19518376]
[1756946237074,0.42134762,112200.0,112190.0,0.83007]
[1756946237476,0.44770938,112200.0,112190.0,1.19945376]
[1756946237677,0.02272762,112200.0,112190.0,1.44945376]
[1756946237974,0.38352762,112200.0,112190.0,1.44945376]
[1756946238379,0.38352762,112200.0,112190.0,1.71465376]
[1756946240078,0.44770938,112200.0,112190.0,1.71465376]
[1756946240279,0.38352762,112200.0,112190.0,1.71465376]
[1756946240782,0.44770938,112200.0,112190.0,1.71465376]
[1756946241777,0.44770938,112200.0,112190.0,1.46465376]
[1756946242083,0.44770938,112200.0,112190.0,1.71465376]
[1756946242084,0.38352762,112200.0,112190.0,1.71465376]
[1756946242284,0.431634,112200.0,112190.0,1.71465376]
[1756946245489,0.431634,112200.0,112190.0,1.71477241]
[1756946250583,0.431634,112200.0,112190.0,0.89385241]
[1756946250784,0.470844,112200.0,112190.0,0.88946241]
[1756946250985,0.431634,112200.0,112190.0,1.70998241]
[1756946251386,0.470844,112200.0,112190.0,0.88946241]
[1756946251588,0.470844,112200.0,112190.0,1.70998241]
[1756946252091,0.110044,112200.0,112190.0,1.70998241]
[1756946252284,0.470844,112200.0,112190.0,1.70998241]
[1756946252486,0.110044,112200.0,112190.0,1.70998241]
[1756946252686,0.470844,112200.0,112190.0,1.70998241]
[1756946253194,0.110044,112200.0,112190.0,1.70998241]
[1756946253398,0.470844,112200.0,112190.0,1.70998241]
[1756946253690,0.470844,112200.0,112190.0,0.52423]
[1756946253896,0.470844,112200.0,112190.0,1.70994241]
[1756946254703,0.470844,112200.0,112190.0,1.71439241]
[1756946258299,0.42273762,112200.0,112190.0,1.71439241]
[1756946260602,0.42273762,112200.0,112190.0,0.89391241]
[1756946260800,0.42273762,112200.0,112190.0,1.71439241]
[1756946262296,0.42273762,112200.0,112190.0,0.89391241]
[1756946262502,0.42273762,112200.0,112190.0,1.71439241]
[1756946264089,0.42273762,112200.0,112190.0,0.89391241]
[1756946264295,0.42273762,112200.0,112190.0,1.71439241]
[1756946265500,0.42273762,112200.0,112190.0,0.64391241]
[1756946265692,0.42273762,112200.0,112190.0,1.46439241]
[1756946268108,0.48691938,112200.0,112190.0,0.64391241]
[1756946268406,0.48691938,112200.0,112190.0,1.46435241]
[1756946268606,0.48691938,112200.0,112190.0,0.64391241]
[1756946268809,0.48691938,112200.0,112190.0,1.45990241]
[1756946269910,0.48691938,112200.0,112190.0,1.46435241]
[1756946270105,0.48691938,112200.0,112190.0,1.09912]
[1756946270306,0.48691938,112200.0,112190.0,1.46435241]
[1756946270997,0.48691938,112200.0,112190.0,1.09912]
[1756946271203,0.48691938,112200.0,112190.0,1.46435241]
[1756946271610,0.48691938,112200.0,112190.0,0.64391241]
[1756946271810,0.48691938,112200.0,112190.0,1.46435241]
[1756946272010,0.47087082,112200.0,112190.0,1.46435241]
[1756946275109,0.42273762,112200.0,112190.0,1.46435241]
[1756946275317,1.08610312,112200.0,112190.0,0.00645]
[1756946275510,1.40797003,112200.0,112190.0,0.00645]
[1756946275816,0.01477,112180.0,112170.0,2.51351241]
[1756946276112,0.44620803,112180.0,112170.0,3.33391241]
[1756946277518,0.44620803,112180.0,112170.0,3.33591241]
[1756946277917,0.44620803,112180.0,112170.0,3.07071241]
[1756946280213,0.44643803,112180.0,112170.0,1.88508]
[1756946280414,1.18851724,112180.0,112170.0,1.88508]
[1756946280620,1.18851724,112180.0,112170.0,2.70548]
[1756946280806,0.82328483,112180.0,112170.0,2.70548]
[1756946281317,1.18851724,112180.0,112170.0,2.70548]
[1756946281519,1.79851724,112180.0,112170.0,1.88508]
[1756946281712,1.79851724,112180.0,112170.0,2.70548]
[1756946283020,1.82119724,112180.0,112170.0,0.002]
[1756946283214,1.82119724,112180.0,112170.0,0.82044]
[1756946283811,1.45596483,112180.0,112170.0,0.82044]
[1756946284010,1.77119724,112180.0,112170.0,0.82044]
[1756946284216,1.77119724,112180.0,112150.0,0.00445]
[1756946284422,0.75905,112160.0,112150.0,0.37671241]
[1756946284623,0.78154762,112160.0,112150.0,0.82367241]
[1756946285524,0.78154762,112160.0,112150.0,0.82467241]
[1756946286126,0.78154762,112160.0,112150.0,0.82367241]
[1756946286324,0.78154762,112160.0,112150.0,0.82667241]
[1756946286519,0.78154762,112160.0,112150.0,0.89777725]
[1756946286917,0.75886762,112160.0,112150.0,0.89477725]
[1756946287121,0.74409762,112160.0,112150.0,0.89577725]
[1756946287322,0.02249762,112160.0,112150.0,0.89577725]
[1756946287521,0.02249762,112160.0,112150.0,1.14577725]
[1756946287716,0.39816762,112170.0,112150.0,1.14577725]
[1756946287923,0.42084762,112170.0,112160.0,0.37226241]
[1756946288122,0.42074762,112170.0,112160.0,0.37226241]
[1756946290126,0.46872486,112170.0,112160.0,0.37226241]
[1756946291427,0.46872486,112170.0,112160.0,1.19278241]
[1756946291816,0.42074762,112170.0,112160.0,1.19278241]
[1756946296129,0.46872486,112170.0,112160.0,1.19278241]
[1756946299131,0.10792486,112170.0,112160.0,1.19278241]
[1756946299333,0.46872486,112170.0,112160.0,1.19278241]
[1756946300629,0.83395727,112170.0,112160.0,0.00703]
[1756946300835,0.03817,112160.0,112150.0,0.34778484]
[1756946301031,1.13670003,112160.0,112150.0,0.07555484]
[1756946301334,1.43467727,112160.0,112150.0,0.07555484]
[1756946301530,1.43467727,112160.0,112150.0,0.82753]
[1756946301728,0.01436,112140.0,112130.0,1.8832]
[1756946301929,1.14917061,112140.0,112130.0,2.70616]
[1756946302136,1.53166823,112140.0,112130.0,2.70616]
[1756946302434,1.17166823,112140.0,112130.0,2.70616]
[1756946302833,0.80643582,112140.0,112130.0,2.71528561]
[1756946303037,0.80443582,112140.0,112130.0,2.71528561]
[1756946303735,0.80543582,112140.0,112130.0,2.71528561]
[1756946304037,0.80543582,112140.0,112130.0,3.08051802]
[1756946304433,0.75845762,112140.0,112130.0,3.08051802]
[1756946304736,0.75845762,112140.0,112130.0,3.15255554]
[1756946305340,0.82242855,112140.0,112130.0,3.15255554]
[1756946305934,0.82242855,112140.0,112130.0,2.78732313]
[1756946309631,0.8064828,112140.0,112130.0,2.78732313]
[1756946310136,0.8064828,112140.0,112130.0,3.15304532]
[1756946310540,0.8064828,112140.0,112130.0,2.78732313]
[1756946311538,0.75845762,112140.0,112130.0,2.78732313]
[1756946311940,0.80648031,112140.0,112130.0,2.78732313]
[1756946312140,0.75845762,112140.0,112130.0,2.78732313]
[1756946314035,0.75845762,112140.0,112130.0,3.15304532]
[1756946318543,0.75845762,112140.0,112130.0,3.41824532]
[1756946319548,0.82242855,112140.0,112130.0,3.41824532]
[1756946322149,0.75845762,112140.0,112130.0,3.41824532]
[1756946322350,0.80648563,112140.0,112130.0,3.41824532]
[1756946322746,0.79412563,112140.0,112130.0,3.66824532]
[1756946322954,0.74609762,112140.0,112130.0,3.66824532]
[1756946323550,0.43332563,112140.0,112130.0,3.66824532]
[1756946323737,0.07252563,112140.0,112130.0,3.66824532]
[1756946323939,0.02449762,112140.0,112130.0,3.66824532]
[1756946324242,0.02249762,112140.0,112130.0,3.66824532]
[1756946324441,0.001,112140.0,112130.0,3.40304532]
[1756946324743,0.02349762,112140.0,112130.0,3.40304532]
[1756946326054,0.02372762,112140.0,112130.0,3.40304532]
[1756946329657,0.02372762,112140.0,112130.0,2.58008532]
[1756946329955,0.02372762,112140.0,112130.0,3.40084532]
[1756946330358,0.03829762,112140.0,112130.0,3.40084532]
[1756946330654,0.03829762,112140.0,112130.0,3.40080532]
[1756946332856,0.03829762,112140.0,112130.0,3.76160532]
[1756946333064,0.02372762,112140.0,112130.0,3.76160532]
[1756946333355,0.02372762,112140.0,112130.0,4.02680532]
[1756946334652,0.02272762,112140.0,112130.0,4.02680532]
[1756946334953,0.02272762,112140.0,112130.0,4.02780532]
[1756946335151,0.00023,112140.0,112130.0,4.02780532]
[1756946335351,0.02272762,112140.0,112130.0,4.02880532]
[1756946335552,0.00023,112140.0,112130.0,3.66800532]
[1756946335757,0.02272762,112140.0,112130.0,4.02880532]
[1756946336258,0.00023,112140.0,112130.0,4.02880532]
[1756946336460,0.02272762,112140.0,112130.0,4.02880532]
[1756946336658,0.00023,112140.0,112130.0,4.02880532]
[1756946336859,0.02272762,112140.0,112130.0,4.02880532]
[1756946337154,0.00023,112140.0,112130.0,4.02880532]
[1756946337659,0.02272762,112140.0,112130.0,3.77880532]
[1756946337858,0.00023,112140.0,112130.0,3.77880532]
[1756946338357,0.02272762,112140.0,112130.0,3.77880532]
[1756946338555,0.00023,112140.0,112130.0,3.77880532]
[1756946338756,0.02272762,112140.0,112130.0,3.77880532]
[1756946339258,0.00023,112140.0,112130.0,3.77880532]
[1756946339460,0.02272762,112140.0,112130.0,3.77880532]
[1756946339655,0.00023,112140.0,112130.0,3.77880532]
[1756946339851,0.02272762,112140.0,112130.0,4.15880532]
[1756946340053,0.00023,112140.0,112130.0,4.15880532]
[1756946340252,0.02272762,112140.0,112130.0,3.77876532]
[1756946340449,0.00023,112140.0,112130.0,4.11876532]
[1756946340661,0.02272762,112140.0,112130.0,4.11876532]
[1756946340861,0.00023,112140.0,112130.0,4.11876532]
[1756946341062,0.02272762,112140.0,112130.0,4.11876532]
[1756946341564,0.00023,112140.0,112130.0,4.11876532]
[1756946341862,0.02272762,112140.0,112130.0,4.11876532]
[1756946342062,0.00023,112140.0,112130.0,4.11876532]
[1756946342262,0.02272762,112140.0,112130.0,4.11876532]
[1756946342458,0.00023,112140.0,112130.0,4.11876532]
[1756946342658,0.02272762,112140.0,112130.0,4.11876532]
[1756946342869,0.00023,112140.0,112130.0,4.11876532]
[1756946343058,0.02272762,112140.0,112130.0,4.11876532]
[1756946343261,0.00023,112140.0,112130.0,4.11876532]
[1756946343458,0.02272762,112140.0,112130.0,4.11876532]
[1756946343660,0.00023,112140.0,112130.0,4.11876532]
[1756946343860,0.02272762,112140.0,112130.0,4.11876532]
[1756946344061,0.00023,112140.0,112130.0,4.11876532]
[1756946344459,0.02272762,112140.0,112130.0,5.55508279]
[1756946344961,0.0001,112150.0,112130.0,5.55508279]
[1756946345262,0.02259762,112150.0,112140.0,2.29371876]
[1756946345456,0.02249762,112150.0,112140.0,2.29371876]
[1756946346064,0.44578563,112160.0,112140.0,2.29371876]
[1756946346265,0.44578563,112160.0,112150.0,1.18632219]
[1756946346561,0.44568563,112160.0,112150.0,1.18632219]
[1756946346760,0.47013563,112160.0,112150.0,0.37595219]
[1756946346957,0.47013563,112160.0,112150.0,1.19655219]
[1756946347164,0.47013563,112160.0,112150.0,1.20100219]
[1756946347871,0.47013563,112160.0,112150.0,0.83524]
[1756946348170,0.47013563,112160.0,112150.0,1.20096219]
[1756946348962,0.47113563,112160.0,112150.0,1.20096219]
[1756946349360,0.47213563,112160.0,112150.0,1.20096219]
[1756946349564,0.47113563,112160.0,112150.0,1.20096219]
[1756946349764,0.47313563,112160.0,112150.0,1.20096219]
[1756946350972,1.39885782,112160.0,112150.0,0.00445]
[1756946351170,1.39082981,112160.0,112150.0,0.00445]
[1756946351369,0.38022219,112140.0,112130.0,2.22956313]
[1756946351677,0.77591587,112140.0,112130.0,3.04095752]
[1756946351860,0.44591587,112140.0,112130.0,3.04095752]
[1756946352066,1.42243806,112140.0,112130.0,1.95523752]
[1756946352267,1.43847748,112140.0,112130.0,2.77575752]
[1756946352667,1.07275529,112140.0,112130.0,2.77575752]
[1756946352868,1.07275529,112140.0,112130.0,2.77675752]
[1756946353067,1.07275529,112140.0,112130.0,2.77775752]
[1756946353762,1.07275529,112140.0,112130.0,2.77675752]
[1756946353967,1.07375529,112140.0,112130.0,2.77675752]
[1756946354168,1.44375529,112140.0,112130.0,2.77675752]
[1756946354565,1.44375529,112140.0,112130.0,2.77575752]
[1756946354566,1.07375529,112140.0,112130.0,2.77575752]
[1756946360277,1.09719529,112140.0,112130.0,0.90990752]
[1756946361376,1.09719529,112140.0,112130.0,0.08938752]
[1756946361578,1.09719529,112140.0,112130.0,0.90986752]
[1756946362377,1.0810829,112140.0,112130.0,0.90986752]
[1756946362872,1.0810829,112140.0,112130.0,0.90990752]
[1756946365385,1.44680509,112140.0,112130.0,0.90990752]
[1756946367478,1.44682356,112140.0,112130.0,0.90990752]
[1756946368374,1.0810829,112140.0,112130.0,0.90990752]
[1756946371480,1.44682356,112140.0,112130.0,0.90990752]
[1756946372868,1.76682356,112140.0,112130.0,0.90990752]
[1756946373077,1.76682356,112140.0,112130.0,0.90978752]
[1756946373272,1.81682356,112140.0,112130.0,0.90978752]
[1756946373479,1.19682356,112140.0,112130.0,0.08938752]
[1756946373684,0.03794,112120.0,112110.0,0.03815678]
[1756946373876,1.14777828,112120.0,112110.0,0.03815678]
[1756946374177,1.46777828,112120.0,112110.0,0.83775]
[1756946374367,1.52777828,112120.0,112110.0,0.83775]
[1756946375172,0.8300829,112120.0,112110.0,0.84765672]
[1756946375573,0.8300829,112120.0,112110.0,1.21339738]
[1756946375772,0.8300829,112120.0,112110.0,1.21539738]
[1756946375980,0.39779762,112120.0,112110.0,1.46539738]
[1756946376369,0.39779762,112120.0,112110.0,1.46339738]
[1756946376571,0.39779762,112120.0,112110.0,1.46439738]
[1756946377280,0.39779762,112120.0,112110.0,1.1694503]
[1756946377485,0.39779762,112120.0,112110.0,1.53619096]
[1756946378080,0.42123762,112120.0,112110.0,0.9204503]
[1756946378486,0.42123762,112120.0,112110.0,1.28619096]
[1756946378691,0.42123762,112120.0,112110.0,0.9204503]
[1756946378875,0.42123762,112120.0,112110.0,1.28619096]
[1756946380074,0.42123762,112120.0,112110.0,0.46579096]
[1756946380271,0.42123762,112120.0,112110.0,1.28619096]
[1756946382480,0.42123762,112120.0,112110.0,0.1000503]
[1756946382686,0.42123762,112120.0,112110.0,1.28615096]
[1756946382876,0.42123762,112120.0,112110.0,0.9204103]
[1756946383078,0.42123762,112120.0,112110.0,1.28615096]
[1756946384186,0.42123762,112120.0,112110.0,0.9204103]
[1756946384388,0.42123762,112120.0,112110.0,1.28615096]
[1756946384686,0.42123762,112120.0,112110.0,0.9204103]
[1756946384985,0.42123762,112120.0,112110.0,1.28615096]
[1756946386288,0.42123762,112120.0,112110.0,0.9204103]
[1756946386489,0.42123762,112120.0,112110.0,1.28615096]
[1756946389388,0.39874,112120.0,112110.0,1.28615096]
[1756946389590,0.42193865,112120.0,112110.0,1.55135096]
[1756946389888,1.19652459,112120.0,112110.0,0.3652503]
[1756946390089,1.78652459,112120.0,112110.0,0.35634358]
[1756946390283,1.82652459,112120.0,112110.0,0.33899358]
[1756946390490,1.82652459,112120.0,112110.0,1.15931358]
[1756946390684,1.44652459,112120.0,112110.0,1.15931358]
[1756946391885,1.75652459,112120.0,112110.0,1.15931358]
[1756946392190,1.44652459,112120.0,112110.0,1.15931358]
[1756946392489,1.39847931,112120.0,112110.0,1.15931358]
[1756946393482,1.71847931,112120.0,112110.0,1.15931358]
[1756946394186,1.71847931,112120.0,112110.0,0.33899358]
[1756946394386,1.78263698,112120.0,112110.0,1.15927358]
[1756946394582,1.46263698,112120.0,112110.0,1.15927358]
[1756946394993,1.83263698,112120.0,112110.0,1.15927358]
[1756946395186,1.46263698,112120.0,112110.0,0.35634358]
[1756946395390,1.80263698,112120.0,112110.0,0.35634358]
[1756946395596,1.46263698,112120.0,112110.0,0.82228]
[1756946395895,1.84263698,112120.0,112110.0,0.82228]
[1756946396402,1.46263698,112120.0,112110.0,0.002]
[1756946396598,1.81263698,112120.0,112110.0,0.002]
[1756946396802,2.90985896,112120.0,112110.0,0.82228]
[1756946397004,1.81263698,112120.0,112110.0,0.82228]
[1756946397302,1.74847931,112120.0,112110.0,0.82228]
[1756946398303,1.81259189,112120.0,112110.0,0.82228]
[1756946398693,1.74847931,112120.0,112110.0,0.82228]
[1756946399199,1.49847931,112120.0,112110.0,0.82228]
[1756946399904,1.50847931,112120.0,112110.0,0.82228]
[1756946401398,1.50847931,112120.0,112110.0,0.83963]
[1756946401399,1.45847931,112120.0,112110.0,0.83963]
[1756946401602,1.14847931,112120.0,112110.0,0.82228]
[1756946401802,1.14847931,112120.0,112110.0,0.002]
[1756946401803,1.73847931,112120.0,112110.0,0.002]
[1756946402113,1.73847931,112120.0,112110.0,0.82224]
[1756946402303,1.81858453,112120.0,112110.0,0.70175857]
[1756946402802,1.96658453,112120.0,112110.0,0.70175857]
[1756946403109,1.80858453,112120.0,112110.0,0.70175857]
[1756946403406,1.80858453,112120.0,112110.0,0.71910857]
[1756946403704,1.80858453,112120.0,112110.0,0.70175857]
[1756946403910,1.83858453,112120.0,112110.0,0.71910857]
[1756946405710,1.22858453,112120.0,112110.0,0.71910857]